Workbook

Sheet INFO
B2: This spreadsheet:
B3: This spreadsheet is part of a series, to support the implementation and use of the set of (CEN, ISO) EPB standards
B4: (see below)
B6: Main related standard(s): | C6: EN 16798-7:2017, Energy performance of buildings — Ventilation for buildings — Part 7: Calculation methods for the determination of air flow rates in buildings including infiltration (Modules M5-5)
B8: Spreadsheet created by: | C8: Gerhard Zweifel (EPB Center expert)
B11: Contact: | C11: https://epb.center/contact/
B13: Date: | C13: 2021-07-13
C14: Replaces file: Demo_FprEN_16798-7_2016-02-11.xlsm. Date: 2016-02-11
B16: Detailed info: | C16: See sheet "Explanation"
B18: The series of spreadsheets to support the implementation and use of the set of EPB standards:
B20: EPB spreadsheets: | C20: This spreadsheet is part of a series of spreadsheets to support the implementation and use of the set of (CEN, ISO) EPB standards
C21: Each of these spreadsheets complies with a specific template and follows specific rules
B23: Main purpose: | C23: The main purpose of these EPB spreadsheets is to support the implementation and use of the standards.
C24: They aim to demonstrate the validity of the calculation procedures and the required input and provided output data defined in the standard.
C25: They support the expert user of the standards, in particular those who want to review the content of the standard and those who want to translate the standard into software, to understand the correct interpretation of the formulae and calculation steps in the standard, or e.g. to explore the sensitivity for variations in input values.
C26: Some spreadsheets have been further developed to include more advanced features or to become more user friendly (see sheet "Explanation")
B28: Limitations: | C28: In general, these spreadsheets do not cover the full range of calculation options that are possible according to the standard to which it applies. This concerns e.g. the number of instances of a variable, the number of time intervals and/or special calculation cases.
C29: These spreadsheets cover only a single or a cluster of EPB standards and are not meant to perform a full energy performance calculation.
C30: Note also that these spreadsheets are mainly intended for testing and demonstration and therefore not aiming to be user friendly or to be protected against wrong or improper use.
C31: The spreadsheets related to the EPB standards are provided to demonstrate specific elements of the calculation procedures in the relevant standard(s). Consequently, they do not replace the EPB standards, but they shall be used along with the EPB standards.
B33: Responsible: | C33: In general, the preparation of the spreadsheet is a collective process in which several experts (including main developers of the standard) are involved
C34: See "Background" below for information on the first versions of (most of) these spreadsheets
B36: Acknowledgement: | C36: The EPB spreadsheets produced or upgraded after 2018 have been prepared under a contract with the European Union, represented by the European Commission (Service contract ENER/C3/2017-437/SI2-785.185). Start: 21 September 2018 for 3 years. See "Background" for information on previous (2012-2017) versions of many of these spreadsheets
B38: Disclaimer: | C38: Although these spreadsheets have been developed with care, neither the authors or contributors warrant that the calculations and procedures in this spreadsheet are free of errors. The EPB Center expressly disclaims any liability or responsibility arising from use of this spreadsheet, or any consequences thereof. Any responsibility arising from the use of this spreadsheet lies with the user.
C39: The information and views set out in this document are those of the author(s) and do not necessarily reflect the official opinion of the European Union. Neither the European Union institutions and bodies nor any person acting on their behalf may be held responsible for the use which may be made of the information contained therein.
B41: Terms of use: | C41: The user is not allowed to redistribute a modified version of this spreadsheet.
C42: The author(s) would appreciate your feed back on the spreadsheet (see Contact above)
B44: More information: | C44: www.epb.center
B46: Background: | C46: First published versions of these spreadsheets were developed during 2012-2017, in the framework of the preparation and revision of the set of EN or ISO standards on the energy performance of buildings, to support the European "Energy Performance of Buildings Directive" recast 2010, under Mandate M/480 of the European Commission to CEN.
C47: These first versions were meant for use by CEN and ISO Technical Committee(s) and the Working Group(s) working on the preparation or revision of the EPB-standard to which this spreadsheet applies.
C48: These first public versions of the spreadsheets were mainly intended to support checking that all formulae in the standard under development were consistent and could be linked with other relevant (EPB) standards.
C49: Many of these spreadsheets have been developed parallel to the preparation of the set of EPB standards under the M/480 mandate from the European Commission (2012 - 2017) and do not necessarily reflect the final status of the standard.
C50: More information:
C51: https://epb.center/epb-standards/background/

Sheet Explanation
B2: EPB standard: | C2: EN 16798-7:2017 | D2: EN 16798-7:2017, Energy performance of buildings — Ventilation for buildings — Part 7: Calculation methods for the determination of air flow rates in buildings including infiltration (Modules M5-5)
B3: Responsible in ISO and/or CEN: | D3: CEN/TC 156 WG 21
B6: Convention: | C6: Font colors and/or cell shading on calculation sheet(s):
C7: orange shading | D7: calculated with corrected formula or changes in input/output
B14: Run: | C14: Only necessary for Series calculations, see top of sheet "Output_series"
B16: Status: | C16: published
B18: Main features: | C18: This spreadsheet comprises the implementation of the calculation method for air flow rates for mechanical ventilation.
C19: A separate spreadsheet has been created for the natural ventilation flow rates.
B26: Time intervals and period: | C26: This hourly calculation covers one instance of an hourly calculation (sheet "Method_calculation"); the series calculation currently comprises one typical winter day and one typical summer day; this can be expanded
B28: Main limitations:
B34: Protection: | C34: --
B36: Why a macro? | C36: Macros are only needed for the series calculation
B38: More information: | C38: CEN/TR 16798-8, Energy performance of buildings
C39: — Part 8: Ventilation for buildings - Modules M5-1, M5-5, M5-6, M5-8
C40: — Calculation methods for the determination of air flow rates in buildings including infiltration
C41: — Technical report — interpretation of the requirements in EN 16798-7
C42: Published 2017
B44: Links: | C44: https://epb.center/documents/en-16798-7/
C45: includes also links to published articles and more
C46: https://epb.center/documents/centr-16798-8/
B48: Overview of the meaning of each sheet in this file
B49: Sheet | D49: Description | E49: Tab colour coding is used to facilitate navigation:
B50: INFO | D50: Common info for all EPB spreadsheets, including DISCLAIMER | E50: Red tab colour (do not touch) for INFO, Explanation and History
B51: Explanation | D51: Explanation on this spreadsheet
B52: Product_tech_data | D52: Product related properties calculations
B53: System_configuration | D53: Option choices based on drop down menus
B54: Input_series | D54: Time series of input data sets
B55: Method_input | D55: Tabulated overview of all input data, according to common template for all EPB spreadsheets | E55: Green tab colour for Method_input/calculation/output
B56: Method_calculation | D56: Step-by-step calculation, according to common template for all EPB spreadsheets. But see ATTENTION above
B57: Method_output | D57: Tabulated overview of all output data, according to common template for all EPB spreadsheets
B58: Output_series | D58: Time series of results
B59: Graphs | D59: Graphical output based on Output_series
B62: History of this spreadsheet
B63: Date | C63: Developer | D63: Description
B65: 2016-02-11 | C65: G. Zweifel | D65: Adapted to final version of the standard, published
B66: 2019-05-22 | C66: G. Zweifel | D66: Equations (5) and (7) corrected
B67: 2020-09-28 | C67: G. Zweifel | D67: Spreadsheet separated in two parts, mechanical and natural ventilation; in this spreadsheet: only mechanical part kept (formulae (7) to (24)), including related input and output.
B68: 2021-01-21 | C68: G. Zweifel | D68: - Unit of zone temperature input variable changed from K to °C; - new equation added on top of "Calculation" sheet for unit conversion; - new output variables added to output table, looped through from input table, for coupling with M2-6 spreadsheet, to avoid coupling with 2 different spreadsheets (unused at the end); - new variables added to "Method_input" sheet: design heating and cooling supply temp. and identifiers SUP_AIR_TEMP_CTRL and SUP_AIR_FLW_CTRL; - limitations added to formula (7) in sheet "Method_Calculation", to avoid extreme results; - comments and warnings added to control options for "illegal" combinations in sheet "Process_design_data"; - 3 variable columns added to "Input_series" sheet for H/C load and occupancy level for coupling with EN ISO 52016-1 spreadsheet; - formula added to variable f_ctrl column in "Input_series" sheet, to provide varying q_V requirements depending on occupancy (value from "Product_tech_data" sheet was unused also in original speadsheet); - order of input values changed for easier coupling with other spreadsheets; - "Single step" option added to macro for coupling with M2-6 module; -> Sheet "Output_Series" curently contains several blocks of data originating from coupled runs with other modules
B69: 2021-02-17 | C69: G. Zweifel | D69: Wrong variable in "Method_output" sheet replaced; Output variables rearranged; non-varying variables eliminated from "Output_series";
B70: 2021-05-28 | C70: G. Zweifel | D70: Adapted to epb.center template; new output variables removed from output table again, since unused at the end;
B71: 2021-06-06 | C71: G. Zweifel | D71: Name manager cleaned up
B72: 2021-07-13 | C72: G. Zweifel | D72: "Main features" text revised, published

Sheet Product_tech_data
A4: B.3.2.4 Mecanical ventilation | B4: f_ctrl | D4: =OFFSET(C10,A7,0) -> 1
A7: 3
A8: Table B.4
A10: Sensor type | B10: Building type | C10: fctrl
A11: People count or CO2 sensor | B11: Non-residential | C11: 0.8
A12: Occupancy sensor | B12: Non-residential | C12: 0.9
A13: All other sensor | B13: Non-residential | C13: 1
A14: All | B14: Residential | C14: 1
A16: B.3.2.4 Mecanical ventilation | B16: f_sys | D16: =OFFSET(C22,A19,0) -> 1
A19: 1
A20: Table B.5
A22: Sensor type | C22: fsys
A23: Certified system with fctrl<1 | C23: 1
A24: Certified system with fctrl=1 | C24: 1.1
A25: Non-certified system | C25: 1.2

Sheet Process_design_data
A1: Example of process design data. In a simple structure, this can be connected directly to the "method_input" sheet where this data is required. In this example spreadsheet the "Method input" is linked to the detailed input.
A6: Process design data (qualitative)
A8: Operation of the Ventilation system (Table 6)
A9: 1 | B9: VENT_SYS_OP | C9: =INDEX(C11:C14,A9) -> BALANCED_OP | D9: =IF(AND(C9<>"BALANCED_OP",C9<>"SUPPLY_OP",C27="LOAD"),"Illegal combination","") -> 
A11: Operation as balanced mechanical system with supply and extract flow | C11: BALANCED_OP
A12: Operation as extract air system only | C12: EXTRACT_OP
A13: Operation as supply air system only | C13: SUPPLY_OP
A14: Operation as natural ventilation, no mechanical system | C14: NATURAL_OP
A16: Control
A17: Control of supply temperature (Table 8)
A18: 4 | B18: SUP_AIR_TEMP_CTRL | C18: =INDEX(C20:C24,A18) -> LOAD_COMP | D18: =IF(AND(C18="LOAD_COMP",C27="LOAD"),"Illegal combination","") -> 
A20: No supply air temperature control | C20: NO_CTRL | D20: unused | E20: it is only distinguished between "LOAD_COMP" or not "LOAD_COMP"
A21: Constant supply air temperature | C21: CONST | D21: unused
A22: Variable set point with outdoor temperature compensation | C22: ODA_COMP | D22: unused
A23: Variable set point with load dependent compensation | C23: LOAD_COMP | D23: option only to be used in combination with SUP_AIR_FLW_CTRL=ODA
A26: Control of supply flowrate (Table 9)
A27: 1 | B27: SUP_AIR_FLW_CTRL | C27: =INDEX(C29:C32,A27) -> ODA | D27: =IF(AND(C27="LOAD",OR(C18="LOAD_COMP",AND(C9<>"BALANCED_OP",C9<>"SUPPLY_OP"))),"Illegal combination","") -> 
A29: Flow rate controlled according to outdoor air requirements only | C29: ODA
A30: Flow rate controlled according to heating/cooling load with a minimum flow rate set by outdoor air requirements | C30: LOAD | D30: option only to be used in combination with SUP_AIR_TEMP_CTRL ¹ LOAD_COMP and in combination with VENT_SYS_OP = BALANCED_OP or SUPPLY_OP
D31: see text and note after equation (22) in the standard

Sheet Input_series
A1: Load here the value of input variables for each time-step (time series) Set the number of input data for each time steps and the number of time step before running The macro from sheet "Output series". Local constant data may be input via the sheets "Constants"
A3: Time series for data input
A4: Settings
A5: Number of input data | F5: 13
A6: Number of input data to transfer | F6: 13
A7: Number of first time step | F7: =+Time_step_first -> 1 | G7: <-- This value is set in the "output_series" sheet
A8: Number of time steps | F8: =+TIME_STEPS_COUNT -> 48 | G8: <-- This value is set in the "output_series" sheet
A9: Last time step | D9: 12 | F9: =+F7+TIME_STEPS_COUNT-1 -> 48
A10: Single step mode: does only this step if value ≠ 0 | F10: 0
R11: From EN ISO 52016-1
A12: Description | B12: Month | C12: Day of month | D12: Hour of day | E12: Control factor | F12: Operation requirement signal (ventilation) | G12: Ventilation zone cooling need to be covered by the mechanical ventilation system | H12: Ventilation zone heating need to be covered by the mechanical ventilation system | I12: Thermal zone set point temperature | J12: Ventilation zone temperature | K12: Corrected outdoor temperature | L12: Supply outdoor air fraction | M12: Supply air temperature | N12: Supply volume flow rate going to ventilation zone | O12: Extract volume flow from a ventilation zone | P12: Duct leakage volume flow extracted from a ventilation zone | Q12: Duct leakage volume flow going to a ventilation zone | R12: Heating/Cooling need -> split into C/H, columns G and H | S12: Occupancy level | T12: Occupancy
A13: Symbol | E13: fctrl | F13: fop;V | G13: QC;V;req | H13: QH;V;req | I13: Jzt | J13: qz | K13: Je;comb | L13: fODA | M13: JSUP;dis;out | N13: qV;SUP;dis | O13: qV;ETA;dis | P13: qV;lea;ETA;dis | Q13: qV;lea;SUP;dis | R13: QHC;V;req
A14: Unit | E14: - | F14: - | G14: kWh | H14: kWh | I14: °C | J14: °C | K14: °C | L14: - | M14: °C | N14: m3/h | O14: m3/h | P14: m3/h | Q14: m3/h | R14: kWh | S14: 0, 1, 2 | T14: -
E15: Local | F15: Local | G15: M2-2 | H15: M2-2 | I15: M2-2 | J15: M2-2 | K15: M3-5, M4-5 | L15: M5-6 | M15: M5-6 | N15: M5-6 | O15: M5-6 | P15: M5-6 | Q15: M5-6
A17: Time stamp
A18: 1 | D18: 1 | E18: =T18+0.5*(1-T18) -> 0.6333335 | F18: 0 | G18: =MIN(0,R18) -> 0 | H18: =MAX(0,R18) -> 0.5798259766 | I18: 19 | J18: 21 | K18: 5 | L18: 0.3668371149 | M18: 23 | N18: 100 | O18: =-N18 -> -100 | P18: =-Q18 -> -10 | Q18: 10 | R18: 0.5798259766 | S18: 1 | T18: =IF(S18=2,0.65,IF(S18=1,0.266667,0)) -> 0.266667
A19: 2 | D19: 2 | E19: =T19+0.5*(1-T19) -> 0.6333335 | F19: 0 | G19: =MIN(0,R19) -> 0 | H19: =MAX(0,R19) -> 0.5741360475 | I19: 19 | J19: 21 | K19: 5 | L19: 0.38303914 | M19: 23 | N19: 110 | O19: -110 | P19: =-Q19 -> -10 | Q19: 10 | R19: 0.5741360475 | S19: 1 | T19: =IF(S19=2,0.65,IF(S19=1,0.266667,0)) -> 0.266667
A20: 3 | D20: 3 | E20: 0.6333335 | F20: 0 | G20: 0 | H20: 0.5727135653 | I20: 19 | J20: 21 | K20: 5 | L20: 0.3873844176 | M20: 23 | N20: 120 | O20: -120 | P20: -10 | Q20: 10 | R20: 0.5727135653 | S20: 1 | T20: 0.266667
A21: 4 | D21: 4 | E21: 0.6333335 | F21: 0 | G21: 0 | H21: 0.5769810121 | I21: 19 | J21: 21 | K21: 5 | L21: 0.3747121764 | M21: 23 | N21: 130 | O21: -130 | P21: -10 | Q21: 10 | R21: 0.5769810121 | S21: 1 | T21: 0.266667
A22: 5 | D22: 5 | E22: 0.6333335 | F22: 0 | G22: 0 | H22: 0.5741360475 | I22: 19 | J22: 21 | K22: 5 | L22: 0.38303914 | M22: 23 | N22: 140 | O22: -140 | P22: -10 | Q22: 10 | R22: 0.5741360475 | S22: 1 | T22: 0.266667
A23: 6 | D23: 6 | E23: 0.6333335 | F23: 0 | G23: 0 | H23: 0.5670236363 | I23: 19 | J23: 21 | K23: 5 | L23: 0.406108613 | M23: 23 | N23: 150 | O23: -150 | P23: -10 | Q23: 10 | R23: 0.5670236363 | S23: 1 | T23: 0.266667
A24: 7 | D24: 7 | E24: 0.5 | F24: 0 | G24: 0 | H24: 1.175596059 | I24: 19 | J24: 21 | K24: 5 | L24: 0.461714918 | M24: 23 | N24: 160 | O24: -160 | P24: -20 | Q24: 20 | R24: 1.175596059 | S24: 0 | T24: 0
A25: 8 | D25: 8 | E25: 0.6333335 | F25: 0 | G25: 0 | H25: 2.587534382 | I25: 19 | J25: 21 | K25: 5 | L25: 0.4903343567 | M25: 23 | N25: 170 | O25: -170 | P25: -40 | Q25: 40 | R25: 2.587534382 | S25: 1 | T25: 0.266667
A26: 9 | D26: 9 | E26: 0.6333335 | F26: 0 | G26: 0 | H26: 4.174319063 | I26: 19 | J26: 21 | K26: 5 | L26: 0.5 | M26: 23 | N26: 180 | O26: -180 | P26: -60 | Q26: 60 | R26: 4.174319063 | S26: 1 | T26: 0.266667
A27: 10 | D27: 10 | E27: 0.5 | F27: 1 | G27: 0 | H27: 5.8744985 | I27: 19 | J27: 21 | K27: 5 | L27: 0.5 | M27: 23 | N27: 190 | O27: -190 | P27: -80 | Q27: 80 | R27: 5.8744985 | S27: 0 | T27: 0
A28: 11 | D28: 11 | E28: 0.5 | F28: 1 | G28: 0 | H28: 5.698975806 | I28: 19 | J28: 21 | K28: 5 | L28: 0.5 | M28: 23 | N28: 200 | O28: -200 | P28: -80 | Q28: 80 | R28: 5.698975806 | S28: 0 | T28: 0
A29: 12 | D29: 12 | E29: 0.5 | F29: 1 | G29: 0 | H29: 2.412219668 | I29: 19 | J29: 21 | K29: 5 | L29: 0.5 | M29: 23 | N29: 100 | O29: -100 | P29: -40 | Q29: 40 | R29: 2.412219668 | S29: 0 | T29: 0
A30: 13 | D30: 13 | E30: 0.5 | F30: 1 | G30: 0 | H30: 3.81907279 | I30: 19 | J30: 21 | K30: 5 | L30: 0.5 | M30: 23 | N30: 110 | O30: -110 | P30: -60 | Q30: 60 | R30: 3.81907279 | S30: 0 | T30: 0
A31: 14 | D31: 14 | E31: 0.5 | F31: 1 | G31: 0 | H31: 5.365482689 | I31: 19 | J31: 21 | K31: -5 | L31: 0.5 | M31: 23 | N31: 120 | O31: -120 | P31: -80 | Q31: 80 | R31: 5.365482689 | S31: 0 | T31: 0
A32: 15 | D32: 15 | E32: 0.5 | F32: 1 | G32: 0 | H32: 5.365482689 | I32: 19 | J32: 21 | K32: -5 | L32: 0.5 | M32: 23 | N32: 130 | O32: -130 | P32: -80 | Q32: 80 | R32: 5.365482689 | S32: 0 | T32: 0
A33: 16 | D33: 16 | E33: 0.5 | F33: 1 | G33: 0 | H33: 2.300018251 | I33: 19 | J33: 21 | K33: -5 | L33: 0.5 | M33: 23 | N33: 140 | O33: -140 | P33: -40 | Q33: 40 | R33: 2.300018251 | S33: 0 | T33: 0
A34: 17 | D34: 17 | E34: 0.6333335 | F34: 1 | G34: 0 | H34: 1.037652709 | I34: 19 | J34: 21 | K34: -5 | L34: 0.5 | M34: 23 | N34: 150 | O34: -150 | P34: -20 | Q34: 20 | R34: 1.037652709 | S34: 1 | T34: 0.266667
A35: 18 | D35: 18 | E35: 0.6333335 | F35: 1 | G35: 0 | H35: 0.4902095947 | I35: 19 | J35: 21 | K35: -5 | L35: 0.5 | M35: 23 | N35: 160 | O35: -160 | P35: -10 | Q35: 10 | R35: 0.4902095947 | S35: 1 | T35: 0.266667
A36: 19 | D36: 19 | E36: 0.6333335 | F36: 1 | G36: 0 | H36: 0.491632077 | I36: 19 | J36: 21 | K36: -5 | L36: 0.5 | M36: 23 | N36: 170 | O36: -170 | P36: -10 | Q36: 10 | R36: 0.491632077 | S36: 1 | T36: 0.266667
A37: 20 | D37: 20 | E37: 0.825 | F37: 1 | G37: 0 | H37: 0.4930545592 | I37: 19 | J37: 21 | K37: -5 | L37: 0.5 | M37: 23 | N37: 180 | O37: -180 | P37: -10 | Q37: 10 | R37: 0.4930545592 | S37: 2 | T37: 0.65
A38: 21 | D38: 21 | E38: 0.825 | F38: 1 | G38: 0 | H38: 0.4944770415 | I38: 19 | J38: 21 | K38: 0 | L38: 0.5 | M38: 23 | N38: 190 | O38: -190 | P38: -10 | Q38: 10 | R38: 0.4944770415 | S38: 2 | T38: 0.65
A39: 22 | D39: 22 | E39: 0.825 | F39: 1 | G39: 0 | H39: 0.4958995237 | I39: 19 | J39: 21 | K39: 0 | L39: 0.5 | M39: 23 | N39: 200 | O39: -200 | P39: -10 | Q39: 10 | R39: 0.4958995237 | S39: 2 | T39: 0.65
A40: 23 | D40: 23 | E40: 0.825 | F40: 1 | G40: 0 | H40: 0.5044344172 | I40: 19 | J40: 21 | K40: 0 | L40: 0.5 | M40: 23 | N40: 100 | O40: -100 | P40: -10 | Q40: 10 | R40: 0.5044344172 | S40: 2 | T40: 0.65
A41: 24 | D41: 24 | E41: 0.825 | F41: 1 | G41: 0 | H41: 0.5115468285 | I41: 19 | J41: 21 | K41: 0 | L41: 0.5 | M41: 23 | N41: 110 | O41: -110 | P41: -10 | Q41: 10 | R41: 0.5115468285 | S41: 2 | T41: 0.65
A42: 25 | D42: 1 | E42: 0.6333335 | F42: 1 | G42: -0.02317680821 | H42: 0 | I42: 21 | J42: 26 | K42: 0 | L42: 1 | M42: 20.68011533 | N42: 120 | O42: -120 | P42: -10 | Q42: 10 | R42: -0.02317680821 | S42: 1 | T42: 0.266667
A43: 26 | D43: 2 | E43: 0.6333335 | F43: 1 | G43: -0.02317680821 | H43: 0 | I43: 21 | J43: 26 | K43: 5 | L43: 1 | M43: 20.68011533 | N43: 130 | O43: -130 | P43: -10 | Q43: 10 | R43: -0.02317680821 | S43: 1 | T43: 0.266667
A44: 27 | D44: 3 | E44: 0.6333335 | F44: 1 | G44: 0 | H44: 0 | I44: 21 | J44: 26 | K44: 5 | L44: 1 | M44: 21.00011533 | N44: 140 | O44: -140 | P44: -10 | Q44: 10 | R44: 0 | S44: 1 | T44: 0.266667
A45: 28 | D45: 4 | E45: 0.6333335 | F45: 1 | G45: 0 | H45: 0 | I45: 21 | J45: 26 | K45: 5 | L45: 1 | M45: 21.16011533 | N45: 150 | O45: -150 | P45: -10 | Q45: 10 | R45: 0 | S45: 1 | T45: 0.266667
A46: 29 | D46: 5 | E46: 0.6333335 | F46: 1 | G46: 0 | H46: 0 | I46: 21 | J46: 26 | K46: 5 | L46: 1 | M46: 21.24011533 | N46: 160 | O46: -160 | P46: -10 | Q46: 10 | R46: 0 | S46: 1 | T46: 0.266667
A47: 30 | D47: 6 | E47: 0.6333335 | F47: 1 | G47: 0 | H47: 0 | I47: 21 | J47: 26 | K47: 5 | L47: 1 | M47: 20.80011533 | N47: 170 | O47: -170 | P47: -10 | Q47: 10 | R47: 0 | S47: 1 | T47: 0.266667
A48: 31 | D48: 7 | E48: 0.5 | F48: 1 | G48: -1.01135985 | H48: 0 | I48: 21 | J48: 26 | K48: 5 | L48: 1 | M48: 19.92005767 | N48: 180 | O48: -180 | P48: -20 | Q48: 20 | R48: -1.01135985 | S48: 0 | T48: 0
A49: 32 | D49: 8 | E49: 0.6333335 | F49: 1 | G49: -3.771302663 | H49: 0 | I49: 21 | J49: 26 | K49: -5 | L49: 1 | M49: 19.24002883 | N49: 190 | O49: -190 | P49: -40 | Q49: 40 | R49: -3.771302663 | S49: 1 | T49: 0.266667
A50: 33 | D50: 9 | E50: 0.6333335 | F50: 1 | G50: -9.234693029 | H50: 0 | I50: 21 | J50: 26 | K50: -5 | L50: 1 | M50: 19.00001922 | N50: 200 | O50: =-N50 -> -200 | P50: -60 | Q50: 60 | R50: -9.234693029 | S50: 1 | T50: 0.266667
A51: 34 | D51: 10 | E51: 0.5 | F51: 1 | G51: -17.33725222 | H51: 0 | I51: 21 | J51: 26 | K51: -5 | L51: 0.5 | M51: 19.00001442 | N51: 100 | O51: -100 | P51: -80 | Q51: 80 | R51: -17.33725222 | S51: 0 | T51: 0
A52: 35 | D52: 11 | E52: 0.5 | F52: 1 | G52: -17.4298454 | H52: 0 | I52: 21 | J52: 26 | K52: -5 | L52: 0.5 | M52: 19.00001442 | N52: 110 | O52: -110 | P52: -80 | Q52: 80 | R52: -17.4298454 | S52: 0 | T52: 0
A53: 36 | D53: 12 | E53: 0.5 | F53: 1 | G53: -8.86076823 | H53: 0 | I53: 21 | J53: 26 | K53: -5 | L53: 0.5 | M53: 19.00002883 | N53: 120 | O53: -120 | P53: -40 | Q53: 40 | R53: -8.86076823 | S53: 0 | T53: 0
A54: 37 | D54: 13 | E54: 0.5 | F54: 1 | G54: -13.52343737 | H54: 0 | I54: 21 | J54: 26 | K54: -5 | L54: 0.5 | M54: 19.00001922 | N54: 130 | O54: -130 | P54: -60 | Q54: 60 | R54: -13.52343737 | S54: 0 | T54: 0
A55: 38 | D55: 14 | E55: 0.5 | F55: 1 | G55: -16.66587451 | H55: 0 | I55: 21 | J55: 26 | K55: -5 | L55: 0.5 | M55: 19.00001442 | N55: 140 | O55: -140 | P55: -80 | Q55: 80 | R55: -16.66587451 | S55: 0 | T55: 0
A56: 39 | D56: 15 | E56: 0.5 | F56: 1 | G56: -15.49070925 | H56: 0 | I56: 21 | J56: 26 | K56: -5 | L56: 0.5 | M56: 19.00001442 | N56: 150 | O56: -150 | P56: -80 | Q56: 80 | R56: -15.49070925 | S56: 0 | T56: 0
A57: 40 | D57: 16 | E57: 0.5 | F57: 1 | G57: -7.666635216 | H57: 0 | I57: 21 | J57: 26 | K57: -5 | L57: 0.5 | M57: 19.00002883 | N57: 160 | O57: -160 | P57: -40 | Q57: 40 | R57: -7.666635216 | S57: 0 | T57: 0
A58: 41 | D58: 17 | E58: 0.6333335 | F58: 1 | G58: -3.923329388 | H58: 0 | I58: 21 | J58: 26 | K58: 0 | L58: 0.5 | M58: 19.00005767 | N58: 170 | O58: -170 | P58: -20 | Q58: 20 | R58: -3.923329388 | S58: 1 | T58: 0.266667
A59: 42 | D59: 18 | E59: 0.6333335 | F59: 1 | G59: -2.163794131 | H59: 0 | I59: 21 | J59: 26 | K59: 0 | L59: 0.5 | M59: 19.00011533 | N59: 180 | O59: -180 | P59: -10 | Q59: 10 | R59: -2.163794131 | S59: 1 | T59: 0.266667
A60: 43 | D60: 19 | E60: 0.6333335 | F60: 1 | G60: -2.021248739 | H60: 0 | I60: 21 | J60: 26 | K60: 0 | L60: 0.5 | M60: 19.00011533 | N60: 190 | O60: -190 | P60: -10 | Q60: 10 | R60: -2.021248739 | S60: 1 | T60: 0.266667
A61: 44 | D61: 20 | E61: 0.825 | F61: 0 | G61: -2.003189669 | H61: 0 | I61: 21 | J61: 26 | K61: 0 | L61: 0.5 | M61: 19.00011533 | N61: 200 | O61: -200 | P61: -10 | Q61: 10 | R61: -2.003189669 | S61: 2 | T61: 0.65
A62: 45 | D62: 21 | E62: 0.825 | F62: 0 | G62: -1.083552488 | H62: 0 | I62: 21 | J62: 26 | K62: 0 | L62: 1 | M62: 19.00011533 | N62: 210 | O62: -210 | P62: -10 | Q62: 10 | R62: -1.083552488 | S62: 2 | T62: 0.65
A63: 46 | D63: 22 | E63: 0.825 | F63: 0 | G63: -0.7300939282 | H63: 0 | I63: 21 | J63: 26 | K63: 5 | L63: 1 | M63: 19.56011533 | N63: 220 | O63: -220 | P63: -10 | Q63: 10 | R63: -0.7300939282 | S63: 2 | T63: 0.65
A64: 47 | D64: 23 | E64: 0.825 | F64: 0 | G64: -0.4776235282 | H64: 0 | I64: 21 | J64: 26 | K64: 5 | L64: 1 | M64: 19.96011533 | N64: 230 | O64: -230 | P64: -10 | Q64: 10 | R64: -0.4776235282 | S64: 2 | T64: 0.65
A65: 48 | D65: 24 | E65: 0.825 | F65: 0 | G65: -0.2756472082 | H65: 0 | I65: 21 | J65: 26 | K65: 5 | L65: 1 | M65: 20.28011533 | N65: 240 | O65: -240 | P65: -10 | Q65: 10 | R65: -0.2756472082 | S65: 2 | T65: 0.65
A66: 49
A67: 50
A68: 51
A69: 52
A70: 53
A71: 54
A72: 55
A73: 56
A74: 57
A75: 58
A76: 59
A77: 60
A78: 61
A79: 62
A80: 63
A81: 64
A82: 65
A83: 66
A84: 67
A85: 68
A86: 69
A87: 70
A88: 71
A89: 72
A90: 73
A91: 74
A92: 75
A93: 76
A94: 77
A95: 78
A96: 79
A97: 80
A98: 81
A99: 82
A100: 83
A101: 84
A102: 85
A103: 86
A104: 87
A105: 88
A106: 89
A107: 90
A108: 91
A109: 92
A110: 93
A111: 94
A112: 95
A113: 96
A114: 97
A115: 98
A116: 99
A117: 100
A118: 101
A119: 102
A120: 103
A121: 104
A122: 105
A123: 106
A124: 107
A125: 108
A126: 109
A127: 110
A128: 111
A129: 112
A130: 113
A131: 114
A132: 115
A133: 116
A134: 117
A135: 118
A136: 119
A137: 120
A138: 121
A139: 122
A140: 123
A141: 124
A142: 125
A143: 126
A144: 127
A145: 128
A146: 129
A147: 130
A148: 131
A149: 132
A150: 133
A151: 134
A152: 135
A153: 136
A154: 137
A155: 138
A156: 139
A157: 140
A158: 141
A159: 142
A160: 143
A161: 144
A162: 145
A163: 146
A164: 147
A165: 148
A166: 149
A167: 150
A168: 151
A169: 152
A170: 153
A171: 154
A172: 155
A173: 156
A174: 157
A175: 158
A176: 159
A177: 160
A178: 161
A179: 162
A180: 163
A181: 164
A182: 165
A183: 166
A184: 167
A185: 168
A186: 169
A187: 170
A188: 171
A189: 172
A190: 173
A191: 174
A192: 175
A193: 176
A194: 177
A195: 178
A196: 179
A197: 180
A198: 181
A199: 182
A200: 183
A201: 184
A202: 185
... 9815 more rows

Sheet Method_input
A1: THIS IS A MANDATORY SHEET All input data for the method shall be listed here. In the simplest version, values for data input in column D (both green and blue background) may be inserted manually. Varying data (green background) can be fed from the "input_series" sheet. In this sample data sheet, product data (blue background) is linked to a sample catalogue built in the "Detailed_input" sheet
B3: Time step to be loaded | D3: 1
A6: Name | B6: Symbol | C6: Software name | D6: Unit | E6: Value | F6: Range | G6: Origin | H6: Varying | I6: Notes
A7: Varying data
A8: Control factor | B8: fctrl | C8: f_ctrl | D8: - | E8: 0.825 | F8: 0 to 1 | G8: Local | H8: Yes | I8: Variable "varying", but Annex A/B only give constant values; dependency of occuppancy used here; therefore there would be a need for an input variable "occuppancy" | J8: Order rearranged for easier interaction with other spreadsheets | K8: 0.825 | L8: 1 | M8: -3.555442073 | N8: 0 | O8: 26 | P8: 28.53090413 | Q8: 25 | R8: 0.7851851852 | S8: 46.39479748 | T8: 254.7169811
A9: Operation requirement signal (ventilation) (0= fan OFF; 1= fan ON) | B9: fop;V | C9: f_op_V | D9: - | E9: 0 | F9: 0 to 1 | G9: Local | H9: Yes
A10: Ventilation zone cooling need to be covered by the mechanical ventilation system | B10: QC;V;req | C10: Q_C_V_req | D10: kWh | E10: -0.2756472082 | F10: 0 to ∞ | G10: M2-2 | H10: Yes
A11: Ventilation zone heating need to be covered by the mechanical ventilation system | B11: QH;V;req | C11: Q_H_V_req | D11: kWh | E11: 0 | F11: 0 to ∞ | G11: M2-2 | H11: Yes
A12: Thermal zone temperature | B12: Jzt | C12: theta_zt | D12: °C | E12: 21 | F12: 0 to 50 | G12: M2-2 | H12: Yes
A13: Ventilation zone temperature | B13: qz | C13: theta_z | D13: °C | E13: 26 | F13: 0 to 50 | G13: M2-2 | H13: Yes | I13: new in Celsius for better communication with other standards
A14: Corrected outdoor temperature | B14: Je;comb | C14: theta_e_comb | D14: °C | E14: 5 | F14: -∞ to 40 | G14: M3-5, M4-5 | H14: Yes
A15: Supply outdoor air fraction | B15: fODA | C15: f_ODA | D15: - | E15: 1 | F15: 0 to 1 | G15: M5-6 | H15: Yes
A16: Supply air temperature | B16: JSUP;dis;out | C16: theta_SUP_dis_out | D16: °C | E16: 20.28011533 | F16: -273 to ∞ | G16: M5-6 | H16: Yes
A17: Supply air volume flow rate going to ventilation zone | B17: qV;SUP;dis | C17: q_V_SUP_dis | D17: m3/h | E17: 240 | F17: 0 to ∞ | G17: M5-6 | H17: Yes
A18: Extract air volume flow from a ventilation zone | B18: qV;ETA;dis | C18: q_V_ETA_dis | D18: m3/h | E18: -240 | F18: -∞ to 0 | G18: M5-6 | H18: Yes | I18: variable unused in this spreadsheet
A19: Duct leakage air volume flow extracted from a ventilation zone | B19: qV;lea;ETA;dis | C19: q_V_lea_ETA_dis | D19: m3/h | E19: -10 | F19: -∞ to 0 | G19: M5-6 | H19: Yes | I19: variable unused in this spreadsheet
A20: Duct leakage air volume flow going to a ventilation zone | B20: qV;lea;SUP;dis | C20: q_V_lea_SUP_dis | D20: m3/h | E20: 10 | F20: 0 to ∞ | G20: M5-6 | H20: Yes | I20: variable unused in this spreadsheet
E21: 0
A22: Product technical input data list
A23: Distribution system correction factor | B23: fsys | C23: f_sys | D23: - | E23: =Product_tech_data!D16 -> 1 | F23: 1 to 3 | G23: Local | H23: No
A25: Process design input data list
A26: Ventilation system effectiveness | B26: eV | C26: epsilon_V | D26: - | E26: 1 | F26: 0 to 3 | G26: Local | H26: No | I26: Line moved to process design, value not varying, to be taken from A/B.3.3.7
A27: Design zone cooling need to be covered by the mechanical ventilation system | B27: QC;des | C27: Q_C_des | D27: kWh | E27: 3.4 | F27: 0 to ∞ | G27: M4-3 | H27: No
A28: Design zone heating need to be covered by the mechanical ventilation system | B28: QH;des | C28: Q_H_des | D28: kWh | E28: 0 | F28: 0 to ∞ | G28: M3-3 | H28: No
A29: Design cooling supply air temperature | B29: JSUP;dis;out;des | C29: theta_SUP_dis_out | D29: °C | E29: 10 | F29: -273 to ∞ | G29: M5-6 | H29: No | I29: new variable; design cooling need needs to be calculated with a design supply temperature
A30: Design heating supply air temperature | B30: JSUP;dis;out;des | C30: theta_SUP_dis_out | D30: °C | E30: 50 | F30: -273 to ∞ | G30: M5-6 | H30: No | I30: new variable; design cooling need needs to be calculated with a design supply temperature
A32: Operating condition
A33: Required design air flow rate to be supplied to or extracted from the ventilation zone assuming a ventilation effectiveness of 1 (perfect mixing). | B33: qV;ODA;req;des | C33: q_V_ODA_req_des | D33: m3/h | E33: 1000 | F33: 0 to ∞ | G33: M1-6 | H33: No
A34: Calculation interval | B34: tci | C34: t_ci | D34: h | E34: 1 | F34: 10-4 to 744 | G34: M1-9 | H34: No
A35: Ventilation system operation | B35: VENT_SYS_OP | C35: VENT_SYS_OP | D35: - | E35: =Process_design_data!C9 -> BALANCED_OP | F35: List | G35: Local | H35: No
A36: Supply air temperature control | B36: SUP_AIR_TEMP_CTRL | C36: SUP_AIR_TEMP_CTRL | D36: - | E36: =Process_design_data!C18 -> LOAD_COMP | F36: List | G36: Local | H36: No | I36: Currently not in input list of the standard
A37: Supply air flow rate control | B37: SUP_AIR_FLW_CTRL | C37: SUP_AIR_FLW_CTRL | D37: - | E37: =Process_design_data!C27 -> ODA | F37: List | G37: Local | H37: No | I37: Currently not in input list of the standard
A38: Temperature variation based on control system | B38: DJctrl;syst | C38: Deltatheta_ctrl_syst | D38: K | E38: 1 | F38: -5 to 40 | G38: M3-5, M4-5 | H38: No
A40: Constants and physical data
A41: Air volume related specific heat | B41: (rc)a | C41: rhoc_a | D41: kWh/(m3·K) | E41: 0.00034
A42: Temperature at 0°C | B42: T0;abs | C42: T0_abs | D42: K | E42: 273.15

Sheet Method_calculation
A1: THIS IS A MANDATORY SHEET One time step calculation shall be described here. For each calculation step (= 1 row) data for the formula in column D shall be taken from the "Method_input" sheet or previous calculation steps. Include in the column "Formula ref" its number in the standard text. The example is based on EN 15316-4-1:2008 Copy and paste a copy of the equation into column "Formula" Use the column note for information on the calculation
A3: Description | B3: Symbol | C3: Unit | D3: Value | E3: Formula ref | F3: Formula | G3: Notes
A4: Absolute zone air temperature | B4: Tz | C4: K | D4: =theta_z+T0_abs -> 299.15 | E4: new | F4: calculation from celsius to kelvin | G4: New formula, added for better interaction with other spreadsheets
A5: 6.4.2.5 Required supply air temperature for mechanical ventilation air condition calculations
A6: Required thermal zone supply air temperature | B6: J SUP;dis;out;req | C6: °C | D6: =IF(AND(q_V_SUP_dis<>0,SUP_AIR_TEMP_CTRL="LOAD_COMP"),MIN(Method_input!E30,MAX(Method_input!E29,theta_zt+(Q_H_V_req+Q_H_V_em_ls)/(rhoc_a*q_V_SUP_dis*t_ci)-(Q_C_V_req+Q_C_V_em_ls)/(rhoc_a*q_V_SUP_dis*t_ci))),999) -> 24.58915636 | E6: (7) | F6: If SUP_AIR_TEMP_CTRL=LOAD_COMP | G6: output | H6: to avoid extreme values limited to set values
A7: Heating emission losses | B7: QH;V;em;ls | C7: kWh | D7: =Q_H_V_req*(Deltatheta_ctrl_syst/(theta_zt-theta_e_comb)) -> 0 | E7: (8)
A8: Cooling emission losses | B8: QC;V;em;ls | C8: kWh | D8: =Q_C_V_req*(Deltatheta_ctrl_syst/(theta_zt-theta_e_comb)) -> -0.01722795051 | E8: (8)
A9: 6.4.3.2.1 Required outdoor ventilation air flow rates for energy calculations
A10: Required outdoor airflow rate | B10: qV;ODA;req | C10: m3/h | D10: =f_ctrl*f_sys/epsilon_V*q_V_ODA_req_des -> 825 | E10: (9) | G10: output
A11: 6.4.3.2.2 Required outdoor air flow rates at air terminal devices | G11: Title is wrong: it's the required flow rate, not only outdoor air
A12: Required supply air flow rate for the ventilation zone | B12: qV;SUP;req | C12: m3/h | D12: =IF(VENT_SYS_OP="BALANCED_OP",q_V_ODA_req,IF(VENT_SYS_OP="SUPPLY_OP",q_V_ODA_req,0)) -> 825 | E12: (10) | F12: If VENT_SYS_OP= BALANCED_OP
E13: (12) | F13: If VENT_SYS_OP=EXHAUST_OP
E14: (14) | F14: If VENT_SYS_OP=SUPPLY_OP
E15: (16) | F15: If VENT_SYS_OP=NATURAL_OP
A16: Required extract air flow rate for the ventilation zone | B16: qV;ETA;req | C16: m3/h | D16: =-IF(VENT_SYS_OP="BALANCED_OP",q_V_ODA_req,IF(VENT_SYS_OP="EXTRACT_OP",q_V_ODA_req,0)) -> -825 | E16: (11) | F16: If VENT_SYS_OP= BALANCED_OP
E17: (13) | F17: If VENT_SYS_OP=EXTRACT_OP
E18: (15) | F18: If VENT_SYS_OP=SUPPLY_OP
E19: (17) | F19: If VENT_SYS_OP=NATURAL_OP
A20: 6.4.3.2.3 Mechanical air flow rates to the ventilation zone required to be distributed through air terminal devices
A21: Required air flow rate to be supplied to the ventilation zone through the air terminal device | B21: qV;SUP;dis;req | C21: m3/h | D21: =IF(SUP_AIR_FLW_CTRL="ODA",f_op_V*q_V_SUP_req,f_op_V*MAX((Q_H_V_req+Q_H_V_em_ls)/(rhoc_a*(theta_SUP_dis_out-T_z+T0_abs)*t_ci),(Q_C_V_req+Q_C_V_em_ls)/(rhoc_a*(T_z-T0_abs-theta_SUP_dis_out)*t_ci),q_V_SUP_req)) -> 0 | E21: (18) | F21: If SUP_AIR_FLW_CTRL = ODA
E22: (20) | F22: else
A23: Required air flow rate to be extracted from the ventilation zone through the air terminal device | B23: qV;ETA;dis;req | C23: m3/h | D23: =IF(SUP_AIR_FLW_CTRL="ODA",f_op_V*q_V_ETA_req,IF(VENT_SYS_OP="BALANCED_OP",-q_V_SUP_dis_req,0)) -> 0 | E23: (19) | F23: If SUP_AIR_FLW_CTRL = ODA
E24: (21)(22) | F24: else if VENT_SYS_OP = BALANCED_OP else
A25: Maximum design mechanical air flow rates required to be supplied to ventilation zone through the air terminal devices | B25: qV;SUP;dis;max;des | C25: m3/h | D25: =MAX(Q_H_des/(rhoc_a*(Method_input!E30-T_z+T0_abs)*t_ci),Q_C_des/(rhoc_a*(T_z-T0_abs-Method_input!E29)*t_ci),q_V_ODA_req_des) -> 1000 | E25: (23)
A26: 6.4.3.2.4 Supply outdoor air flow rate
A27: Supply outdoor air provided to ventilation zone | B27: qV;ODA;dis | C27: m3/h | D27: =f_ODA*q_V_SUP_dis -> 240 | E27: (24) | G27: should be an output, but is not requested anywhere

Sheet Method_output
A1: THIS IS A MANDATORY SHEET Output of one step calculation shall be indicated here. Each cell in the column value shall be a reference to a single cell in the "Method_calculation" sheet. The macro will take the calculation step results and fill the values table in the "Output_series" sheet.
C2: Convergence not reached click on Sover Button in "Method calculation sheet to reach convergence
A4: Name | B4: Symbol | C4: Software name | D4: Unit | E4: Value | F4: Range | G4: Intended destination | H4: Varying | I4: Notes
A6: Operation requirement signal (ventilation) (0=fan OFF;1=fan ON) | B6: fop;V | C6: f_op_V | D6: - | E6: =f_op_V -> 0 | F6: 0 or 1 | G6: M5-6 | H6: Yes | J6: Variables rearranged for easier exchange with coupled spreadsheets
A7: Supply air flow rate required at the air terminal devices of the mechanical ventilation system | B7: qV;SUP;dis;req | C7: q_V_SUP_dis_req | D7: m3/h | E7: =q_V_SUP_dis_req -> 0 | F7: 0 to ∞ | G7: M5-6 | H7: Yes
A8: Extract air flow rate required at the air terminal devices of the mechanical ventilation system | B8: qV;ETA;dis;req | C8: q_V_ETA_dis_req | D8: m3/h | E8: =q_V_ETA_dis_req -> 0 | F8: -∞ to 0 | G8: M5-6 | H8: Yes
A9: Required supply outdoor air volume flow rate | B9: qV;ODA;req | C9: q_V_ODA_req | D9: m3/h | E9: =q_V_ODA_req -> 825 | F9: 0 to ∞ | G9: M5-6 | H9: Yes
A10: Required ventilation zone supply air temperature for the case of SUP_AIR_TEMP_CTRL = LOAD_COMP | B10: J SUP;dis;out;req | C10: theta_SUP_dis_out_req | D10: °C | E10: =theta_SUP_dis_out_req -> 24.58915636 | F10: 0 to ∞ | G10: M5-6 | H10: Yes | I10: This case may be blank if the ventilation system is a natural or an extract system
A11: Thermal zone temperature | B11: Jz | C11: theta_z | D11: °C | E11: =theta_z -> 26 | F11: 0 to 50 | G11: M5-6 | H11: Yes | I11: Wrong variable linked -> corrected to theta_z, which is to be linked as the "return temperature"
A12: Maximum design required supply air volume flow rate for ventilation zone | B12: qV;SUP;dis;max;des | C12: q_V_SUP_dis_max_des | D12: m3/h | E12: =q_V_SUP_dis_max_des -> 1000 | F12: 0 to ∞ | G12: M5-6 | H12: No | I12: since varying = "no": no link to output-series
A13: Design supply outdoor air volume flow rate for ventilation zone | B13: qV;ODA;req;des | C13: q_V_ODA_req_des | D13: m3/h | E13: =q_V_ODA_req_des -> 1000 | F13: 0 to ∞ | G13: M5-6 | H13: No | I13: since varying = "no": no link to output-series

Sheet Output_series
A1: Here a time series can be generated to test the method with variable input data. Data input series must be inserted in the "input_series" sheet before.
A3: Time series for data output
A4: Settings
A5: Number of output data | C5: 6
A7: This sheet will be filled automatically by a macro which will scan the "input_series" and perform the calculation defined in the "Method_calculation" sheet for each calculation interval. | M7: Calculation intervals to be processed
A8: Press "Clear output data" to reset output series | L8: First calculation interval | N8: 1
A9: Select the calculation intervals to process (first one and number, last is calculated) | L9: Number of calculation intervals | N9: 48
A10: Press "Run calculation" to start calculation of individual time steps | L10: Last calculation interval | N10: =+N9+N8-1 -> 48
B13: Month | C13: Day of month | D13: Hour of day | E13: Operation requirement signal | F13: Supply air flow rate required at the air terminal devices of the mechanical ventilation system | G13: Extract air flow rate required at the air terminal devices of the mechanical ventilation system | H13: Required supply outdoor air volume flow rate | I13: Required ventilation zone supply air temperature for the case of SUP_TEMP_CTRL = LOAD_COMP | J13: Thermal zone temperature
A14: Symbol | E14: fop;V | F14: qV;SUP;dis;req | G14: qV;ETA;dis;req | H14: qV;ODA;req | I14: J SUP;dis;out;req | J14: Jz
A15: Unit | E15: - | F15: m3/h | G15: m3/h | H15: m3/h | I15: °C | J15: °C
A16: Destination | E16: M5-6 | F16: M5-6 | G16: M5-6 | H16: M5-6 | I16: M5-6 | J16: M5-6
A17: MAX | E17: =MAX(E$22:E$10021) -> 1 | F17: =MAX(F$22:F$10021) -> 825 | G17: 0 | H17: 825 | I17: 50 | J17: 26
A18: MIN | E18: =MIN(E$22:E$10021) -> 0 | F18: =MIN(F$22:F$10021) -> 0 | G18: -825 | H18: 500 | I18: 21 | J18: 21
A19: AVG | E19: =IFERROR(AVERAGE(E$22:E$10021),"") -> 0.7083333333 | F19: =IFERROR(AVERAGE(F$22:F$10021),"") -> 426.9097708 | G19: -426.9097708 | H19: 628.8195208 | I19: 39.09113729 | J19: 23.5
A20: TOT | E20: =SUM(E$22:E$10021) -> 34 | F20: =SUM(F$22:F$10021) -> 20491.669 | G20: -20491.669 | H20: 30183.337 | I20: 1876.37459 | J20: 1128
A21: Time stamp
A22: 1 | B22: =IF(Input_series!B18="","",Input_series!B18) ->  | C22: =IF(Input_series!C18="","",Input_series!C18) ->  | D22: =IF(Input_series!D18="","",Input_series!D18) -> 1 | E22: 0 | F22: 0 | G22: 0 | H22: 633.3335 | I22: 37.27182699 | J22: 21
A23: 2 | B23: =IF(Input_series!B19="","",Input_series!B19) ->  | C23: =IF(Input_series!C19="","",Input_series!C19) ->  | D23: =IF(Input_series!D19="","",Input_series!D19) -> 2 | E23: 0 | F23: 0 | G23: 0 | H23: 633.3335 | I23: 35.44774773 | J23: 21
A24: 3 | B24: =IF(Input_series!B20="","",Input_series!B20) ->  | C24: =IF(Input_series!C20="","",Input_series!C20) ->  | D24: =IF(Input_series!D20="","",Input_series!D20) -> 3 | E24: 0 | F24: 0 | G24: 0 | H24: 633.3335 | I24: 34.03974699 | J24: 21
A25: 4 | B25: =IF(Input_series!B21="","",Input_series!B21) ->  | C25: =IF(Input_series!C21="","",Input_series!C21) ->  | D25: =IF(Input_series!D21="","",Input_series!D21) -> 4 | E25: 0 | F25: 0 | G25: 0 | H25: 633.3335 | I25: 32.98628827 | J25: 21
A26: 5 | B26: =IF(Input_series!B22="","",Input_series!B22) ->  | C26: =IF(Input_series!C22="","",Input_series!C22) ->  | D26: =IF(Input_series!D22="","",Input_series!D22) -> 5 | E26: 0 | F26: 0 | G26: 0 | H26: 633.3335 | I26: 31.92323036 | J26: 21
A27: 6 | B27: =IF(Input_series!B23="","",Input_series!B23) ->  | C27: =IF(Input_series!C23="","",Input_series!C23) ->  | D27: =IF(Input_series!D23="","",Input_series!D23) -> 6 | E27: 0 | F27: 0 | G27: 0 | H27: 633.3335 | I27: 30.91226127 | J27: 21
A28: 7 | B28: =IF(Input_series!B24="","",Input_series!B24) ->  | C28: =IF(Input_series!C24="","",Input_series!C24) ->  | D28: =IF(Input_series!D24="","",Input_series!D24) -> 7 | E28: 0 | F28: 0 | G28: 0 | H28: 500 | I28: 42.15380893 | J28: 21
A29: 8 | B29: =IF(Input_series!B25="","",Input_series!B25) ->  | C29: =IF(Input_series!C25="","",Input_series!C25) ->  | D29: =IF(Input_series!D25="","",Input_series!D25) -> 8 | E29: 0 | F29: 0 | G29: 0 | H29: 633.3335 | I29: 50 | J29: 21
A30: 9 | B30: =IF(Input_series!B26="","",Input_series!B26) ->  | C30: =IF(Input_series!C26="","",Input_series!C26) ->  | D30: =IF(Input_series!D26="","",Input_series!D26) -> 9 | E30: 0 | F30: 0 | G30: 0 | H30: 633.3335 | I30: 50 | J30: 21
A31: 10 | B31: =IF(Input_series!B27="","",Input_series!B27) ->  | C31: =IF(Input_series!C27="","",Input_series!C27) ->  | D31: =IF(Input_series!D27="","",Input_series!D27) -> 10 | E31: 1 | F31: 500 | G31: -500 | H31: 500 | I31: 50 | J31: 21
A32: 11 | B32: =IF(Input_series!B28="","",Input_series!B28) ->  | C32: =IF(Input_series!C28="","",Input_series!C28) ->  | D32: =IF(Input_series!D28="","",Input_series!D28) -> 11 | E32: 1 | F32: 500 | G32: -500 | H32: 500 | I32: 50 | J32: 21
A33: 12 | B33: =IF(Input_series!B29="","",Input_series!B29) ->  | C33: =IF(Input_series!C29="","",Input_series!C29) ->  | D33: =IF(Input_series!D29="","",Input_series!D29) -> 12 | E33: 1 | F33: 500 | G33: -500 | H33: 500 | I33: 50 | J33: 21
A34: 13 | B34: =IF(Input_series!B30="","",Input_series!B30) ->  | C34: =IF(Input_series!C30="","",Input_series!C30) ->  | D34: =IF(Input_series!D30="","",Input_series!D30) -> 13 | E34: 1 | F34: 500 | G34: -500 | H34: 500 | I34: 50 | J34: 21
A35: 14 | B35: =IF(Input_series!B31="","",Input_series!B31) ->  | C35: =IF(Input_series!C31="","",Input_series!C31) ->  | D35: =IF(Input_series!D31="","",Input_series!D31) -> 14 | E35: 1 | F35: 500 | G35: -500 | H35: 500 | I35: 50 | J35: 21
A36: 15 | B36: =IF(Input_series!B32="","",Input_series!B32) ->  | C36: =IF(Input_series!C32="","",Input_series!C32) ->  | D36: =IF(Input_series!D32="","",Input_series!D32) -> 15 | E36: 1 | F36: 500 | G36: -500 | H36: 500 | I36: 50 | J36: 21
A37: 16 | B37: =IF(Input_series!B33="","",Input_series!B33) ->  | C37: =IF(Input_series!C33="","",Input_series!C33) ->  | D37: =IF(Input_series!D33="","",Input_series!D33) -> 16 | E37: 1 | F37: 500 | G37: -500 | H37: 500 | I37: 50 | J37: 21
A38: 17 | B38: =IF(Input_series!B34="","",Input_series!B34) ->  | C38: =IF(Input_series!C34="","",Input_series!C34) ->  | D38: =IF(Input_series!D34="","",Input_series!D34) -> 17 | E38: 1 | F38: 633.3335 | G38: -633.3335 | H38: 633.3335 | I38: 40.19388704 | J38: 21
A39: 18 | B39: =IF(Input_series!B35="","",Input_series!B35) ->  | C39: =IF(Input_series!C35="","",Input_series!C35) ->  | D39: =IF(Input_series!D35="","",Input_series!D35) -> 18 | E39: 1 | F39: 633.3335 | G39: -633.3335 | H39: 633.3335 | I39: 28.38667269 | J39: 21
A40: 19 | B40: =IF(Input_series!B36="","",Input_series!B36) ->  | C40: =IF(Input_series!C36="","",Input_series!C36) ->  | D40: =IF(Input_series!D36="","",Input_series!D36) -> 19 | E40: 1 | F40: 633.3335 | G40: -633.3335 | H40: 633.3335 | I40: 27.86015133 | J40: 21
A41: 20 | B41: =IF(Input_series!B37="","",Input_series!B37) ->  | C41: =IF(Input_series!C37="","",Input_series!C37) ->  | D41: =IF(Input_series!D37="","",Input_series!D37) -> 20 | E41: 1 | F41: 825 | G41: -825 | H41: 825 | I41: 27.39213234 | J41: 21
A42: 21 | B42: =IF(Input_series!B38="","",Input_series!B38) ->  | C42: =IF(Input_series!C38="","",Input_series!C38) ->  | D42: =IF(Input_series!D38="","",Input_series!D38) -> 21 | E42: 1 | F42: 825 | G42: -825 | H42: 825 | I42: 27.05730881 | J42: 21
A43: 22 | B43: =IF(Input_series!B39="","",Input_series!B39) ->  | C43: =IF(Input_series!C39="","",Input_series!C39) ->  | D43: =IF(Input_series!D39="","",Input_series!D39) -> 22 | E43: 1 | F43: 825 | G43: -825 | H43: 825 | I43: 26.67646322 | J43: 21
A44: 23 | B44: =IF(Input_series!B40="","",Input_series!B40) ->  | C44: =IF(Input_series!C40="","",Input_series!C40) ->  | D44: =IF(Input_series!D40="","",Input_series!D40) -> 23 | E44: 1 | F44: 825 | G44: -825 | H44: 825 | I44: 34.61716462 | J44: 21
A45: 24 | B45: =IF(Input_series!B41="","",Input_series!B41) ->  | C45: =IF(Input_series!C41="","",Input_series!C41) ->  | D45: =IF(Input_series!D41="","",Input_series!D41) -> 24 | E45: 1 | F45: 825 | G45: -825 | H45: 825 | I45: 33.39760283 | J45: 21
A46: 25 | B46: =IF(Input_series!B42="","",Input_series!B42) ->  | C46: =IF(Input_series!C42="","",Input_series!C42) ->  | D46: =IF(Input_series!D42="","",Input_series!D42) -> 1 | E46: 1 | F46: 633.3335 | G46: -633.3335 | H46: 633.3335 | I46: 21.59510945 | J46: 26
A47: 26 | B47: =IF(Input_series!B43="","",Input_series!B43) ->  | C47: =IF(Input_series!C43="","",Input_series!C43) ->  | D47: =IF(Input_series!D43="","",Input_series!D43) -> 2 | E47: 1 | F47: 633.3335 | G47: -633.3335 | H47: 633.3335 | I47: 21.55713481 | J47: 26
A48: 27 | B48: =IF(Input_series!B44="","",Input_series!B44) ->  | C48: =IF(Input_series!C44="","",Input_series!C44) ->  | D48: =IF(Input_series!D44="","",Input_series!D44) -> 3 | E48: 1 | F48: 633.3335 | G48: -633.3335 | H48: 633.3335 | I48: 21 | J48: 26
A49: 28 | B49: =IF(Input_series!B45="","",Input_series!B45) ->  | C49: =IF(Input_series!C45="","",Input_series!C45) ->  | D49: =IF(Input_series!D45="","",Input_series!D45) -> 4 | E49: 1 | F49: 633.3335 | G49: -633.3335 | H49: 633.3335 | I49: 21 | J49: 26
A50: 29 | B50: =IF(Input_series!B46="","",Input_series!B46) ->  | C50: =IF(Input_series!C46="","",Input_series!C46) ->  | D50: =IF(Input_series!D46="","",Input_series!D46) -> 5 | E50: 1 | F50: 633.3335 | G50: -633.3335 | H50: 633.3335 | I50: 21 | J50: 26
A51: 30 | B51: =IF(Input_series!B47="","",Input_series!B47) ->  | C51: =IF(Input_series!C47="","",Input_series!C47) ->  | D51: =IF(Input_series!D47="","",Input_series!D47) -> 6 | E51: 1 | F51: 633.3335 | G51: -633.3335 | H51: 633.3335 | I51: 21 | J51: 26
A52: 31 | B52: =IF(Input_series!B48="","",Input_series!B48) ->  | C52: =IF(Input_series!C48="","",Input_series!C48) ->  | D52: =IF(Input_series!D48="","",Input_series!D48) -> 7 | E52: 1 | F52: 500 | G52: -500 | H52: 500 | I52: 38.55833073 | J52: 26
A53: 32 | B53: =IF(Input_series!B49="","",Input_series!B49) ->  | C53: =IF(Input_series!C49="","",Input_series!C49) ->  | D53: =IF(Input_series!D49="","",Input_series!D49) -> 8 | E53: 1 | F53: 633.3335 | G53: -633.3335 | H53: 633.3335 | I53: 50 | J53: 26
A54: 33 | B54: =IF(Input_series!B50="","",Input_series!B50) ->  | C54: =IF(Input_series!C50="","",Input_series!C50) ->  | D54: =IF(Input_series!D50="","",Input_series!D50) -> 9 | E54: 1 | F54: 633.3335 | G54: -633.3335 | H54: 633.3335 | I54: 50 | J54: 26
A55: 34 | B55: =IF(Input_series!B51="","",Input_series!B51) ->  | C55: =IF(Input_series!C51="","",Input_series!C51) ->  | D55: =IF(Input_series!D51="","",Input_series!D51) -> 10 | E55: 1 | F55: 500 | G55: -500 | H55: 500 | I55: 50 | J55: 26
A56: 35 | B56: =IF(Input_series!B52="","",Input_series!B52) ->  | C56: =IF(Input_series!C52="","",Input_series!C52) ->  | D56: =IF(Input_series!D52="","",Input_series!D52) -> 11 | E56: 1 | F56: 500 | G56: -500 | H56: 500 | I56: 50 | J56: 26
A57: 36 | B57: =IF(Input_series!B53="","",Input_series!B53) ->  | C57: =IF(Input_series!C53="","",Input_series!C53) ->  | D57: =IF(Input_series!D53="","",Input_series!D53) -> 12 | E57: 1 | F57: 500 | G57: -500 | H57: 500 | I57: 50 | J57: 26
A58: 37 | B58: =IF(Input_series!B54="","",Input_series!B54) ->  | C58: =IF(Input_series!C54="","",Input_series!C54) ->  | D58: =IF(Input_series!D54="","",Input_series!D54) -> 13 | E58: 1 | F58: 500 | G58: -500 | H58: 500 | I58: 50 | J58: 26
A59: 38 | B59: =IF(Input_series!B55="","",Input_series!B55) ->  | C59: =IF(Input_series!C55="","",Input_series!C55) ->  | D59: =IF(Input_series!D55="","",Input_series!D55) -> 14 | E59: 1 | F59: 500 | G59: -500 | H59: 500 | I59: 50 | J59: 26
A60: 39 | B60: =IF(Input_series!B56="","",Input_series!B56) ->  | C60: =IF(Input_series!C56="","",Input_series!C56) ->  | D60: =IF(Input_series!D56="","",Input_series!D56) -> 15 | E60: 1 | F60: 500 | G60: -500 | H60: 500 | I60: 50 | J60: 26
A61: 40 | B61: =IF(Input_series!B57="","",Input_series!B57) ->  | C61: =IF(Input_series!C57="","",Input_series!C57) ->  | D61: =IF(Input_series!D57="","",Input_series!D57) -> 16 | E61: 1 | F61: 500 | G61: -500 | H61: 500 | I61: 50 | J61: 26
A62: 41 | B62: =IF(Input_series!B58="","",Input_series!B58) ->  | C62: =IF(Input_series!C58="","",Input_series!C58) ->  | D62: =IF(Input_series!D58="","",Input_series!D58) -> 17 | E62: 1 | F62: 633.3335 | G62: -633.3335 | H62: 633.3335 | I62: 50 | J62: 26
A63: 42 | B63: =IF(Input_series!B59="","",Input_series!B59) ->  | C63: =IF(Input_series!C59="","",Input_series!C59) ->  | D63: =IF(Input_series!D59="","",Input_series!D59) -> 18 | E63: 1 | F63: 633.3335 | G63: -633.3335 | H63: 633.3335 | I63: 50 | J63: 26
A64: 43 | B64: =IF(Input_series!B60="","",Input_series!B60) ->  | C64: =IF(Input_series!C60="","",Input_series!C60) ->  | D64: =IF(Input_series!D60="","",Input_series!D60) -> 19 | E64: 1 | F64: 633.3335 | G64: -633.3335 | H64: 633.3335 | I64: 50 | J64: 26
A65: 44 | B65: =IF(Input_series!B61="","",Input_series!B61) ->  | C65: =IF(Input_series!C61="","",Input_series!C61) ->  | D65: =IF(Input_series!D61="","",Input_series!D61) -> 20 | E65: 0 | F65: 0 | G65: 0 | H65: 825 | I65: 50 | J65: 26
A66: 45 | B66: =IF(Input_series!B62="","",Input_series!B62) ->  | C66: =IF(Input_series!C62="","",Input_series!C62) ->  | D66: =IF(Input_series!D62="","",Input_series!D62) -> 21 | E66: 0 | F66: 0 | G66: 0 | H66: 825 | I66: 36.89846255 | J66: 26
A67: 46 | B67: =IF(Input_series!B63="","",Input_series!B63) ->  | C67: =IF(Input_series!C63="","",Input_series!C63) ->  | D67: =IF(Input_series!D63="","",Input_series!D63) -> 22 | E67: 0 | F67: 0 | G67: 0 | H67: 825 | I67: 31.37065239 | J67: 26
A68: 47 | B68: =IF(Input_series!B64="","",Input_series!B64) ->  | C68: =IF(Input_series!C64="","",Input_series!C64) ->  | D68: =IF(Input_series!D64="","",Input_series!D64) -> 23 | E68: 0 | F68: 0 | G68: 0 | H68: 825 | I68: 27.48945011 | J68: 26
A69: 48 | B69: =IF(Input_series!B65="","",Input_series!B65) ->  | C69: =IF(Input_series!C65="","",Input_series!C65) ->  | D69: =IF(Input_series!D65="","",Input_series!D65) -> 24 | E69: 0 | F69: 0 | G69: 0 | H69: 825 | I69: 24.58915636 | J69: 26
A70: 49 | B70: =IF(Input_series!B66="","",Input_series!B66) ->  | C70: =IF(Input_series!C66="","",Input_series!C66) ->  | D70: =IF(Input_series!D66="","",Input_series!D66) -> 
A71: 50 | B71: =IF(Input_series!B67="","",Input_series!B67) ->  | C71: =IF(Input_series!C67="","",Input_series!C67) ->  | D71: =IF(Input_series!D67="","",Input_series!D67) -> 
A72: 51 | B72: =IF(Input_series!B68="","",Input_series!B68) ->  | C72: =IF(Input_series!C68="","",Input_series!C68) ->  | D72: =IF(Input_series!D68="","",Input_series!D68) -> 
A73: 52 | B73: =IF(Input_series!B69="","",Input_series!B69) ->  | C73: =IF(Input_series!C69="","",Input_series!C69) ->  | D73: =IF(Input_series!D69="","",Input_series!D69) -> 
A74: 53 | B74: =IF(Input_series!B70="","",Input_series!B70) ->  | C74: =IF(Input_series!C70="","",Input_series!C70) ->  | D74: =IF(Input_series!D70="","",Input_series!D70) -> 
A75: 54 | B75: =IF(Input_series!B71="","",Input_series!B71) ->  | C75: =IF(Input_series!C71="","",Input_series!C71) ->  | D75: =IF(Input_series!D71="","",Input_series!D71) -> 
A76: 55 | B76: =IF(Input_series!B72="","",Input_series!B72) ->  | C76: =IF(Input_series!C72="","",Input_series!C72) ->  | D76: =IF(Input_series!D72="","",Input_series!D72) -> 
A77: 56 | B77: =IF(Input_series!B73="","",Input_series!B73) ->  | C77: =IF(Input_series!C73="","",Input_series!C73) ->  | D77: =IF(Input_series!D73="","",Input_series!D73) -> 
A78: 57 | B78: =IF(Input_series!B74="","",Input_series!B74) ->  | C78: =IF(Input_series!C74="","",Input_series!C74) ->  | D78: =IF(Input_series!D74="","",Input_series!D74) -> 
A79: 58 | B79: =IF(Input_series!B75="","",Input_series!B75) ->  | C79: =IF(Input_series!C75="","",Input_series!C75) ->  | D79: =IF(Input_series!D75="","",Input_series!D75) -> 
A80: 59 | B80: =IF(Input_series!B76="","",Input_series!B76) ->  | C80: =IF(Input_series!C76="","",Input_series!C76) ->  | D80: =IF(Input_series!D76="","",Input_series!D76) -> 
A81: 60 | B81: =IF(Input_series!B77="","",Input_series!B77) ->  | C81: =IF(Input_series!C77="","",Input_series!C77) ->  | D81: =IF(Input_series!D77="","",Input_series!D77) -> 
A82: 61 | B82: =IF(Input_series!B78="","",Input_series!B78) ->  | C82: =IF(Input_series!C78="","",Input_series!C78) ->  | D82: =IF(Input_series!D78="","",Input_series!D78) -> 
A83: 62 | B83: =IF(Input_series!B79="","",Input_series!B79) ->  | C83: =IF(Input_series!C79="","",Input_series!C79) ->  | D83: =IF(Input_series!D79="","",Input_series!D79) -> 
A84: 63 | B84: =IF(Input_series!B80="","",Input_series!B80) ->  | C84: =IF(Input_series!C80="","",Input_series!C80) ->  | D84: =IF(Input_series!D80="","",Input_series!D80) -> 
A85: 64 | B85: =IF(Input_series!B81="","",Input_series!B81) ->  | C85: =IF(Input_series!C81="","",Input_series!C81) ->  | D85: =IF(Input_series!D81="","",Input_series!D81) -> 
A86: 65 | B86: =IF(Input_series!B82="","",Input_series!B82) ->  | C86: =IF(Input_series!C82="","",Input_series!C82) ->  | D86: =IF(Input_series!D82="","",Input_series!D82) -> 
A87: 66 | B87: =IF(Input_series!B83="","",Input_series!B83) ->  | C87: =IF(Input_series!C83="","",Input_series!C83) ->  | D87: =IF(Input_series!D83="","",Input_series!D83) -> 
A88: 67 | B88: =IF(Input_series!B84="","",Input_series!B84) ->  | C88: =IF(Input_series!C84="","",Input_series!C84) ->  | D88: =IF(Input_series!D84="","",Input_series!D84) -> 
A89: 68 | B89: =IF(Input_series!B85="","",Input_series!B85) ->  | C89: =IF(Input_series!C85="","",Input_series!C85) ->  | D89: =IF(Input_series!D85="","",Input_series!D85) -> 
A90: 69 | B90: =IF(Input_series!B86="","",Input_series!B86) ->  | C90: =IF(Input_series!C86="","",Input_series!C86) ->  | D90: =IF(Input_series!D86="","",Input_series!D86) -> 
A91: 70 | B91: =IF(Input_series!B87="","",Input_series!B87) ->  | C91: =IF(Input_series!C87="","",Input_series!C87) ->  | D91: =IF(Input_series!D87="","",Input_series!D87) -> 
A92: 71 | B92: =IF(Input_series!B88="","",Input_series!B88) ->  | C92: =IF(Input_series!C88="","",Input_series!C88) ->  | D92: =IF(Input_series!D88="","",Input_series!D88) -> 
A93: 72 | B93: =IF(Input_series!B89="","",Input_series!B89) ->  | C93: =IF(Input_series!C89="","",Input_series!C89) ->  | D93: =IF(Input_series!D89="","",Input_series!D89) -> 
A94: 73 | B94: =IF(Input_series!B90="","",Input_series!B90) ->  | C94: =IF(Input_series!C90="","",Input_series!C90) ->  | D94: =IF(Input_series!D90="","",Input_series!D90) -> 
A95: 74 | B95: =IF(Input_series!B91="","",Input_series!B91) ->  | C95: =IF(Input_series!C91="","",Input_series!C91) ->  | D95: =IF(Input_series!D91="","",Input_series!D91) -> 
A96: 75 | B96: =IF(Input_series!B92="","",Input_series!B92) ->  | C96: =IF(Input_series!C92="","",Input_series!C92) ->  | D96: =IF(Input_series!D92="","",Input_series!D92) -> 
A97: 76 | B97: =IF(Input_series!B93="","",Input_series!B93) ->  | C97: =IF(Input_series!C93="","",Input_series!C93) ->  | D97: =IF(Input_series!D93="","",Input_series!D93) -> 
A98: 77 | B98: =IF(Input_series!B94="","",Input_series!B94) ->  | C98: =IF(Input_series!C94="","",Input_series!C94) ->  | D98: =IF(Input_series!D94="","",Input_series!D94) -> 
A99: 78 | B99: =IF(Input_series!B95="","",Input_series!B95) ->  | C99: =IF(Input_series!C95="","",Input_series!C95) ->  | D99: =IF(Input_series!D95="","",Input_series!D95) -> 
A100: 79 | B100: =IF(Input_series!B96="","",Input_series!B96) ->  | C100: =IF(Input_series!C96="","",Input_series!C96) ->  | D100: =IF(Input_series!D96="","",Input_series!D96) -> 
A101: 80 | B101: =IF(Input_series!B97="","",Input_series!B97) ->  | C101: =IF(Input_series!C97="","",Input_series!C97) ->  | D101: =IF(Input_series!D97="","",Input_series!D97) -> 
A102: 81 | B102: =IF(Input_series!B98="","",Input_series!B98) ->  | C102: =IF(Input_series!C98="","",Input_series!C98) ->  | D102: =IF(Input_series!D98="","",Input_series!D98) -> 
A103: 82 | B103: =IF(Input_series!B99="","",Input_series!B99) ->  | C103: =IF(Input_series!C99="","",Input_series!C99) ->  | D103: =IF(Input_series!D99="","",Input_series!D99) -> 
A104: 83 | B104: =IF(Input_series!B100="","",Input_series!B100) ->  | C104: =IF(Input_series!C100="","",Input_series!C100) ->  | D104: =IF(Input_series!D100="","",Input_series!D100) -> 
A105: 84 | B105: =IF(Input_series!B101="","",Input_series!B101) ->  | C105: =IF(Input_series!C101="","",Input_series!C101) ->  | D105: =IF(Input_series!D101="","",Input_series!D101) -> 
A106: 85 | B106: =IF(Input_series!B102="","",Input_series!B102) ->  | C106: =IF(Input_series!C102="","",Input_series!C102) ->  | D106: =IF(Input_series!D102="","",Input_series!D102) -> 
A107: 86 | B107: =IF(Input_series!B103="","",Input_series!B103) ->  | C107: =IF(Input_series!C103="","",Input_series!C103) ->  | D107: =IF(Input_series!D103="","",Input_series!D103) -> 
A108: 87 | B108: =IF(Input_series!B104="","",Input_series!B104) ->  | C108: =IF(Input_series!C104="","",Input_series!C104) ->  | D108: =IF(Input_series!D104="","",Input_series!D104) -> 
A109: 88 | B109: =IF(Input_series!B105="","",Input_series!B105) ->  | C109: =IF(Input_series!C105="","",Input_series!C105) ->  | D109: =IF(Input_series!D105="","",Input_series!D105) -> 
A110: 89 | B110: =IF(Input_series!B106="","",Input_series!B106) ->  | C110: =IF(Input_series!C106="","",Input_series!C106) ->  | D110: =IF(Input_series!D106="","",Input_series!D106) -> 
A111: 90 | B111: =IF(Input_series!B107="","",Input_series!B107) ->  | C111: =IF(Input_series!C107="","",Input_series!C107) ->  | D111: =IF(Input_series!D107="","",Input_series!D107) -> 
A112: 91 | B112: =IF(Input_series!B108="","",Input_series!B108) ->  | C112: =IF(Input_series!C108="","",Input_series!C108) ->  | D112: =IF(Input_series!D108="","",Input_series!D108) -> 
A113: 92 | B113: =IF(Input_series!B109="","",Input_series!B109) ->  | C113: =IF(Input_series!C109="","",Input_series!C109) ->  | D113: =IF(Input_series!D109="","",Input_series!D109) -> 
A114: 93 | B114: =IF(Input_series!B110="","",Input_series!B110) ->  | C114: =IF(Input_series!C110="","",Input_series!C110) ->  | D114: =IF(Input_series!D110="","",Input_series!D110) -> 
A115: 94 | B115: =IF(Input_series!B111="","",Input_series!B111) ->  | C115: =IF(Input_series!C111="","",Input_series!C111) ->  | D115: =IF(Input_series!D111="","",Input_series!D111) -> 
A116: 95 | B116: =IF(Input_series!B112="","",Input_series!B112) ->  | C116: =IF(Input_series!C112="","",Input_series!C112) ->  | D116: =IF(Input_series!D112="","",Input_series!D112) -> 
A117: 96 | B117: =IF(Input_series!B113="","",Input_series!B113) ->  | C117: =IF(Input_series!C113="","",Input_series!C113) ->  | D117: =IF(Input_series!D113="","",Input_series!D113) -> 
A118: 97 | B118: =IF(Input_series!B114="","",Input_series!B114) ->  | C118: =IF(Input_series!C114="","",Input_series!C114) ->  | D118: =IF(Input_series!D114="","",Input_series!D114) -> 
A119: 98 | B119: =IF(Input_series!B115="","",Input_series!B115) ->  | C119: =IF(Input_series!C115="","",Input_series!C115) ->  | D119: =IF(Input_series!D115="","",Input_series!D115) -> 
A120: 99 | B120: =IF(Input_series!B116="","",Input_series!B116) ->  | C120: =IF(Input_series!C116="","",Input_series!C116) ->  | D120: =IF(Input_series!D116="","",Input_series!D116) -> 
A121: 100 | B121: =IF(Input_series!B117="","",Input_series!B117) ->  | C121: =IF(Input_series!C117="","",Input_series!C117) ->  | D121: =IF(Input_series!D117="","",Input_series!D117) -> 
A122: 101 | B122: =IF(Input_series!B118="","",Input_series!B118) ->  | C122: =IF(Input_series!C118="","",Input_series!C118) ->  | D122: =IF(Input_series!D118="","",Input_series!D118) -> 
A123: 102 | B123: =IF(Input_series!B119="","",Input_series!B119) ->  | C123: =IF(Input_series!C119="","",Input_series!C119) ->  | D123: =IF(Input_series!D119="","",Input_series!D119) -> 
A124: 103 | B124: =IF(Input_series!B120="","",Input_series!B120) ->  | C124: =IF(Input_series!C120="","",Input_series!C120) ->  | D124: =IF(Input_series!D120="","",Input_series!D120) -> 
A125: 104 | B125: =IF(Input_series!B121="","",Input_series!B121) ->  | C125: =IF(Input_series!C121="","",Input_series!C121) ->  | D125: =IF(Input_series!D121="","",Input_series!D121) -> 
A126: 105 | B126: =IF(Input_series!B122="","",Input_series!B122) ->  | C126: =IF(Input_series!C122="","",Input_series!C122) ->  | D126: =IF(Input_series!D122="","",Input_series!D122) -> 
A127: 106 | B127: =IF(Input_series!B123="","",Input_series!B123) ->  | C127: =IF(Input_series!C123="","",Input_series!C123) ->  | D127: =IF(Input_series!D123="","",Input_series!D123) -> 
A128: 107 | B128: =IF(Input_series!B124="","",Input_series!B124) ->  | C128: =IF(Input_series!C124="","",Input_series!C124) ->  | D128: =IF(Input_series!D124="","",Input_series!D124) -> 
A129: 108 | B129: =IF(Input_series!B125="","",Input_series!B125) ->  | C129: =IF(Input_series!C125="","",Input_series!C125) ->  | D129: =IF(Input_series!D125="","",Input_series!D125) -> 
A130: 109 | B130: =IF(Input_series!B126="","",Input_series!B126) ->  | C130: =IF(Input_series!C126="","",Input_series!C126) ->  | D130: =IF(Input_series!D126="","",Input_series!D126) -> 
A131: 110 | B131: =IF(Input_series!B127="","",Input_series!B127) ->  | C131: =IF(Input_series!C127="","",Input_series!C127) ->  | D131: =IF(Input_series!D127="","",Input_series!D127) -> 
A132: 111 | B132: =IF(Input_series!B128="","",Input_series!B128) ->  | C132: =IF(Input_series!C128="","",Input_series!C128) ->  | D132: =IF(Input_series!D128="","",Input_series!D128) -> 
A133: 112 | B133: =IF(Input_series!B129="","",Input_series!B129) ->  | C133: =IF(Input_series!C129="","",Input_series!C129) ->  | D133: =IF(Input_series!D129="","",Input_series!D129) -> 
A134: 113 | B134: =IF(Input_series!B130="","",Input_series!B130) ->  | C134: =IF(Input_series!C130="","",Input_series!C130) ->  | D134: =IF(Input_series!D130="","",Input_series!D130) -> 
A135: 114 | B135: =IF(Input_series!B131="","",Input_series!B131) ->  | C135: =IF(Input_series!C131="","",Input_series!C131) ->  | D135: =IF(Input_series!D131="","",Input_series!D131) -> 
A136: 115 | B136: =IF(Input_series!B132="","",Input_series!B132) ->  | C136: =IF(Input_series!C132="","",Input_series!C132) ->  | D136: =IF(Input_series!D132="","",Input_series!D132) -> 
A137: 116 | B137: =IF(Input_series!B133="","",Input_series!B133) ->  | C137: =IF(Input_series!C133="","",Input_series!C133) ->  | D137: =IF(Input_series!D133="","",Input_series!D133) -> 
A138: 117 | B138: =IF(Input_series!B134="","",Input_series!B134) ->  | C138: =IF(Input_series!C134="","",Input_series!C134) ->  | D138: =IF(Input_series!D134="","",Input_series!D134) -> 
A139: 118 | B139: =IF(Input_series!B135="","",Input_series!B135) ->  | C139: =IF(Input_series!C135="","",Input_series!C135) ->  | D139: =IF(Input_series!D135="","",Input_series!D135) -> 
A140: 119 | B140: =IF(Input_series!B136="","",Input_series!B136) ->  | C140: =IF(Input_series!C136="","",Input_series!C136) ->  | D140: =IF(Input_series!D136="","",Input_series!D136) -> 
A141: 120 | B141: =IF(Input_series!B137="","",Input_series!B137) ->  | C141: =IF(Input_series!C137="","",Input_series!C137) ->  | D141: =IF(Input_series!D137="","",Input_series!D137) -> 
A142: 121 | B142: =IF(Input_series!B138="","",Input_series!B138) ->  | C142: =IF(Input_series!C138="","",Input_series!C138) ->  | D142: =IF(Input_series!D138="","",Input_series!D138) -> 
A143: 122 | B143: =IF(Input_series!B139="","",Input_series!B139) ->  | C143: =IF(Input_series!C139="","",Input_series!C139) ->  | D143: =IF(Input_series!D139="","",Input_series!D139) -> 
A144: 123 | B144: =IF(Input_series!B140="","",Input_series!B140) ->  | C144: =IF(Input_series!C140="","",Input_series!C140) ->  | D144: =IF(Input_series!D140="","",Input_series!D140) -> 
A145: 124 | B145: =IF(Input_series!B141="","",Input_series!B141) ->  | C145: =IF(Input_series!C141="","",Input_series!C141) ->  | D145: =IF(Input_series!D141="","",Input_series!D141) -> 
A146: 125 | B146: =IF(Input_series!B142="","",Input_series!B142) ->  | C146: =IF(Input_series!C142="","",Input_series!C142) ->  | D146: =IF(Input_series!D142="","",Input_series!D142) -> 
A147: 126 | B147: =IF(Input_series!B143="","",Input_series!B143) ->  | C147: =IF(Input_series!C143="","",Input_series!C143) ->  | D147: =IF(Input_series!D143="","",Input_series!D143) -> 
A148: 127 | B148: =IF(Input_series!B144="","",Input_series!B144) ->  | C148: =IF(Input_series!C144="","",Input_series!C144) ->  | D148: =IF(Input_series!D144="","",Input_series!D144) -> 
A149: 128 | B149: =IF(Input_series!B145="","",Input_series!B145) ->  | C149: =IF(Input_series!C145="","",Input_series!C145) ->  | D149: =IF(Input_series!D145="","",Input_series!D145) -> 
A150: 129 | B150: =IF(Input_series!B146="","",Input_series!B146) ->  | C150: =IF(Input_series!C146="","",Input_series!C146) ->  | D150: =IF(Input_series!D146="","",Input_series!D146) -> 
A151: 130 | B151: =IF(Input_series!B147="","",Input_series!B147) ->  | C151: =IF(Input_series!C147="","",Input_series!C147) ->  | D151: =IF(Input_series!D147="","",Input_series!D147) -> 
A152: 131 | B152: =IF(Input_series!B148="","",Input_series!B148) ->  | C152: =IF(Input_series!C148="","",Input_series!C148) ->  | D152: =IF(Input_series!D148="","",Input_series!D148) -> 
A153: 132 | B153: =IF(Input_series!B149="","",Input_series!B149) ->  | C153: =IF(Input_series!C149="","",Input_series!C149) ->  | D153: =IF(Input_series!D149="","",Input_series!D149) -> 
A154: 133 | B154: =IF(Input_series!B150="","",Input_series!B150) ->  | C154: =IF(Input_series!C150="","",Input_series!C150) ->  | D154: =IF(Input_series!D150="","",Input_series!D150) -> 
A155: 134 | B155: =IF(Input_series!B151="","",Input_series!B151) ->  | C155: =IF(Input_series!C151="","",Input_series!C151) ->  | D155: =IF(Input_series!D151="","",Input_series!D151) -> 
A156: 135 | B156: =IF(Input_series!B152="","",Input_series!B152) ->  | C156: =IF(Input_series!C152="","",Input_series!C152) ->  | D156: =IF(Input_series!D152="","",Input_series!D152) -> 
A157: 136 | B157: =IF(Input_series!B153="","",Input_series!B153) ->  | C157: =IF(Input_series!C153="","",Input_series!C153) ->  | D157: =IF(Input_series!D153="","",Input_series!D153) -> 
A158: 137 | B158: =IF(Input_series!B154="","",Input_series!B154) ->  | C158: =IF(Input_series!C154="","",Input_series!C154) ->  | D158: =IF(Input_series!D154="","",Input_series!D154) -> 
A159: 138 | B159: =IF(Input_series!B155="","",Input_series!B155) ->  | C159: =IF(Input_series!C155="","",Input_series!C155) ->  | D159: =IF(Input_series!D155="","",Input_series!D155) -> 
A160: 139 | B160: =IF(Input_series!B156="","",Input_series!B156) ->  | C160: =IF(Input_series!C156="","",Input_series!C156) ->  | D160: =IF(Input_series!D156="","",Input_series!D156) -> 
A161: 140 | B161: =IF(Input_series!B157="","",Input_series!B157) ->  | C161: =IF(Input_series!C157="","",Input_series!C157) ->  | D161: =IF(Input_series!D157="","",Input_series!D157) -> 
A162: 141 | B162: =IF(Input_series!B158="","",Input_series!B158) ->  | C162: =IF(Input_series!C158="","",Input_series!C158) ->  | D162: =IF(Input_series!D158="","",Input_series!D158) -> 
A163: 142 | B163: =IF(Input_series!B159="","",Input_series!B159) ->  | C163: =IF(Input_series!C159="","",Input_series!C159) ->  | D163: =IF(Input_series!D159="","",Input_series!D159) -> 
A164: 143 | B164: =IF(Input_series!B160="","",Input_series!B160) ->  | C164: =IF(Input_series!C160="","",Input_series!C160) ->  | D164: =IF(Input_series!D160="","",Input_series!D160) -> 
A165: 144 | B165: =IF(Input_series!B161="","",Input_series!B161) ->  | C165: =IF(Input_series!C161="","",Input_series!C161) ->  | D165: =IF(Input_series!D161="","",Input_series!D161) -> 
A166: 145 | B166: =IF(Input_series!B162="","",Input_series!B162) ->  | C166: =IF(Input_series!C162="","",Input_series!C162) ->  | D166: =IF(Input_series!D162="","",Input_series!D162) -> 
A167: 146 | B167: =IF(Input_series!B163="","",Input_series!B163) ->  | C167: =IF(Input_series!C163="","",Input_series!C163) ->  | D167: =IF(Input_series!D163="","",Input_series!D163) -> 
A168: 147 | B168: =IF(Input_series!B164="","",Input_series!B164) ->  | C168: =IF(Input_series!C164="","",Input_series!C164) ->  | D168: =IF(Input_series!D164="","",Input_series!D164) -> 
A169: 148 | B169: =IF(Input_series!B165="","",Input_series!B165) ->  | C169: =IF(Input_series!C165="","",Input_series!C165) ->  | D169: =IF(Input_series!D165="","",Input_series!D165) -> 
A170: 149 | B170: =IF(Input_series!B166="","",Input_series!B166) ->  | C170: =IF(Input_series!C166="","",Input_series!C166) ->  | D170: =IF(Input_series!D166="","",Input_series!D166) -> 
A171: 150 | B171: =IF(Input_series!B167="","",Input_series!B167) ->  | C171: =IF(Input_series!C167="","",Input_series!C167) ->  | D171: =IF(Input_series!D167="","",Input_series!D167) -> 
A172: 151 | B172: =IF(Input_series!B168="","",Input_series!B168) ->  | C172: =IF(Input_series!C168="","",Input_series!C168) ->  | D172: =IF(Input_series!D168="","",Input_series!D168) -> 
A173: 152 | B173: =IF(Input_series!B169="","",Input_series!B169) ->  | C173: =IF(Input_series!C169="","",Input_series!C169) ->  | D173: =IF(Input_series!D169="","",Input_series!D169) -> 
A174: 153 | B174: =IF(Input_series!B170="","",Input_series!B170) ->  | C174: =IF(Input_series!C170="","",Input_series!C170) ->  | D174: =IF(Input_series!D170="","",Input_series!D170) -> 
A175: 154 | B175: =IF(Input_series!B171="","",Input_series!B171) ->  | C175: =IF(Input_series!C171="","",Input_series!C171) ->  | D175: =IF(Input_series!D171="","",Input_series!D171) -> 
A176: 155 | B176: =IF(Input_series!B172="","",Input_series!B172) ->  | C176: =IF(Input_series!C172="","",Input_series!C172) ->  | D176: =IF(Input_series!D172="","",Input_series!D172) -> 
A177: 156 | B177: =IF(Input_series!B173="","",Input_series!B173) ->  | C177: =IF(Input_series!C173="","",Input_series!C173) ->  | D177: =IF(Input_series!D173="","",Input_series!D173) -> 
A178: 157 | B178: =IF(Input_series!B174="","",Input_series!B174) ->  | C178: =IF(Input_series!C174="","",Input_series!C174) ->  | D178: =IF(Input_series!D174="","",Input_series!D174) -> 
A179: 158 | B179: =IF(Input_series!B175="","",Input_series!B175) ->  | C179: =IF(Input_series!C175="","",Input_series!C175) ->  | D179: =IF(Input_series!D175="","",Input_series!D175) -> 
A180: 159 | B180: =IF(Input_series!B176="","",Input_series!B176) ->  | C180: =IF(Input_series!C176="","",Input_series!C176) ->  | D180: =IF(Input_series!D176="","",Input_series!D176) -> 
A181: 160 | B181: =IF(Input_series!B177="","",Input_series!B177) ->  | C181: =IF(Input_series!C177="","",Input_series!C177) ->  | D181: =IF(Input_series!D177="","",Input_series!D177) -> 
A182: 161 | B182: =IF(Input_series!B178="","",Input_series!B178) ->  | C182: =IF(Input_series!C178="","",Input_series!C178) ->  | D182: =IF(Input_series!D178="","",Input_series!D178) -> 
A183: 162 | B183: =IF(Input_series!B179="","",Input_series!B179) ->  | C183: =IF(Input_series!C179="","",Input_series!C179) ->  | D183: =IF(Input_series!D179="","",Input_series!D179) -> 
A184: 163 | B184: =IF(Input_series!B180="","",Input_series!B180) ->  | C184: =IF(Input_series!C180="","",Input_series!C180) ->  | D184: =IF(Input_series!D180="","",Input_series!D180) -> 
A185: 164 | B185: =IF(Input_series!B181="","",Input_series!B181) ->  | C185: =IF(Input_series!C181="","",Input_series!C181) ->  | D185: =IF(Input_series!D181="","",Input_series!D181) -> 
A186: 165 | B186: =IF(Input_series!B182="","",Input_series!B182) ->  | C186: =IF(Input_series!C182="","",Input_series!C182) ->  | D186: =IF(Input_series!D182="","",Input_series!D182) -> 
A187: 166 | B187: =IF(Input_series!B183="","",Input_series!B183) ->  | C187: =IF(Input_series!C183="","",Input_series!C183) ->  | D187: =IF(Input_series!D183="","",Input_series!D183) -> 
A188: 167 | B188: =IF(Input_series!B184="","",Input_series!B184) ->  | C188: =IF(Input_series!C184="","",Input_series!C184) ->  | D188: =IF(Input_series!D184="","",Input_series!D184) -> 
A189: 168 | B189: =IF(Input_series!B185="","",Input_series!B185) ->  | C189: =IF(Input_series!C185="","",Input_series!C185) ->  | D189: =IF(Input_series!D185="","",Input_series!D185) -> 
A190: 169 | B190: =IF(Input_series!B186="","",Input_series!B186) ->  | C190: =IF(Input_series!C186="","",Input_series!C186) ->  | D190: =IF(Input_series!D186="","",Input_series!D186) -> 
A191: 170 | B191: =IF(Input_series!B187="","",Input_series!B187) ->  | C191: =IF(Input_series!C187="","",Input_series!C187) ->  | D191: =IF(Input_series!D187="","",Input_series!D187) -> 
A192: 171 | B192: =IF(Input_series!B188="","",Input_series!B188) ->  | C192: =IF(Input_series!C188="","",Input_series!C188) ->  | D192: =IF(Input_series!D188="","",Input_series!D188) -> 
A193: 172 | B193: =IF(Input_series!B189="","",Input_series!B189) ->  | C193: =IF(Input_series!C189="","",Input_series!C189) ->  | D193: =IF(Input_series!D189="","",Input_series!D189) -> 
A194: 173 | B194: =IF(Input_series!B190="","",Input_series!B190) ->  | C194: =IF(Input_series!C190="","",Input_series!C190) ->  | D194: =IF(Input_series!D190="","",Input_series!D190) -> 
A195: 174 | B195: =IF(Input_series!B191="","",Input_series!B191) ->  | C195: =IF(Input_series!C191="","",Input_series!C191) ->  | D195: =IF(Input_series!D191="","",Input_series!D191) -> 
A196: 175 | B196: =IF(Input_series!B192="","",Input_series!B192) ->  | C196: =IF(Input_series!C192="","",Input_series!C192) ->  | D196: =IF(Input_series!D192="","",Input_series!D192) -> 
A197: 176 | B197: =IF(Input_series!B193="","",Input_series!B193) ->  | C197: =IF(Input_series!C193="","",Input_series!C193) ->  | D197: =IF(Input_series!D193="","",Input_series!D193) -> 
A198: 177 | B198: =IF(Input_series!B194="","",Input_series!B194) ->  | C198: =IF(Input_series!C194="","",Input_series!C194) ->  | D198: =IF(Input_series!D194="","",Input_series!D194) -> 
A199: 178 | B199: =IF(Input_series!B195="","",Input_series!B195) ->  | C199: =IF(Input_series!C195="","",Input_series!C195) ->  | D199: =IF(Input_series!D195="","",Input_series!D195) -> 
A200: 179 | B200: =IF(Input_series!B196="","",Input_series!B196) ->  | C200: =IF(Input_series!C196="","",Input_series!C196) ->  | D200: =IF(Input_series!D196="","",Input_series!D196) -> 
A201: 180 | B201: =IF(Input_series!B197="","",Input_series!B197) ->  | C201: =IF(Input_series!C197="","",Input_series!C197) ->  | D201: =IF(Input_series!D197="","",Input_series!D197) -> 
A202: 181 | B202: =IF(Input_series!B198="","",Input_series!B198) ->  | C202: =IF(Input_series!C198="","",Input_series!C198) ->  | D202: =IF(Input_series!D198="","",Input_series!D198) -> 
A203: 182 | B203: =IF(Input_series!B199="","",Input_series!B199) ->  | C203: =IF(Input_series!C199="","",Input_series!C199) ->  | D203: =IF(Input_series!D199="","",Input_series!D199) -> 
A204: 183 | B204: =IF(Input_series!B200="","",Input_series!B200) ->  | C204: =IF(Input_series!C200="","",Input_series!C200) ->  | D204: =IF(Input_series!D200="","",Input_series!D200) -> 
... 9817 more rows

Sheet Graphs
